bitfinex-derivatives/quotes_SOLF0:USTF0_20250820
["timestamp","ask_amount","ask_price","bid_price","bid_amount"]
[1755709540686,2.99,184.49,184.41,0.0378667]
[1755709546898,2.99,184.49,184.44,5.4214]
[1755709547089,364.18,184.52,184.41,0.0378667]
[1755709547291,364.18,184.52,184.42,2.94]
[1755709548092,364.18,184.52,184.45,0.03723457]
[1755709548297,2.99,184.51,184.45,0.03723457]
[1755709549995,140.67,184.51,184.45,0.03723457]
[1755709551196,2.99,184.5,184.45,0.03723457]
[1755709551398,137.68,184.51,184.45,0.03723457]
[1755709551690,2.99,184.48,184.45,0.03723457]
[1755709554302,137.68,184.51,184.45,0.03723457]
[1755709554303,2.99,184.49,184.45,0.03723457]
[1755709554597,137.68,184.51,184.45,0.03723457]
[1755709554794,372.17470709,184.52,184.45,0.03723457]
[1755709555096,137.58,184.51,184.45,0.03723457]
[1755709556590,137.58,184.51,184.45,2.83723457]
[1755709556787,2.95,184.56,184.45,2.83723457]
[1755709556991,140.55,184.56,184.5,5.4197]
[1755709557594,140.55,184.56,184.43,4.5104455]
[1755709557898,140.55,184.56,184.44,2.8]
[1755709558098,140.55,184.56,184.48,0.03572508]
[1755709558998,145.55470709,184.56,184.48,0.03572508]
[1755709559197,142.60470709,184.56,184.48,0.03572508]
[1755709559389,2.95,184.55,184.48,0.03572508]
[1755709564506,5.94203251,184.55,184.48,0.03572508]
[1755709567205,5.94203251,184.55,184.49,2.8]
[1755709567899,5.94203251,184.55,184.48,0.03572508]
[1755709570305,137.6,184.56,184.48,0.03572508]
[1755709570503,137.6,184.56,184.49,2.8]
[1755709570906,137.6,184.56,184.49,8.2199]
[1755709571405,137.6,184.56,184.5,5.4196]
[1755709571608,140.55,184.56,184.48,0.03572508]
[1755709571908,140.55,184.56,184.48,5.45582508]
[1755709572112,2.99203251,184.55,184.48,0.03572508]
[1755709572508,2.99203251,184.52,184.48,0.03572508]
[1755709572703,2.95,184.51,184.48,0.03572508]
[1755709573213,137.38,184.51,184.48,0.03572508]
[1755709573412,5.94203251,184.49,184.48,0.03572508]
[1755709573611,5.94203251,184.49,184.39,2.8]
[1755709573809,2.99203251,184.46,184.39,2.8]
[1755709574112,143.40203251,184.46,184.39,2.8]
[1755709574713,140.45203251,184.46,184.39,2.8]
[1755709574913,0.04025581,184.44,184.39,2.8]
[1755709575110,0.04025581,184.44,184.41,8.2223]
[1755709575314,0.04025581,184.44,184.43,2.8]
[1755709575809,0.04025581,184.44,184.43,8.2218]
[1755709576418,2.95,184.53,184.43,3.34]
[1755709576615,140.35,184.53,184.43,2.8]
[1755709577216,140.35,184.53,184.46,5.4207]
[1755709577714,140.35,184.53,184.48,0.04149229]
[1755709577915,2.95,184.51,184.48,0.04149229]
[1755709578311,2.95,184.51,184.4,5.4225]
[1755709578514,2.98769348,184.51,184.38,2.8]
[1755709578813,2.98769348,184.51,184.44,5.4213]
[1755709579018,2.95,184.51,184.44,5.4213]
[1755709579615,0.03445931,184.49,184.45,5.4212]
[1755709580211,0.03445931,184.49,184.45,8.2212]
[1755709580810,0.03445931,184.49,184.45,2.8]
[1755709581015,2.98445931,184.49,184.41,2.8]
[1755709581517,2.95,184.49,184.42,5.4221]
[1755709581814,0.04041382,184.47,184.41,2.8]
[1755709582320,0.04041382,184.47,184.41,8.2222]
[1755709582618,0.04041382,184.47,184.41,2.8]
[1755709582816,0.04041382,184.47,184.37,7.3104455]
[1755709583008,2.95,184.46,184.37,7.3104455]
[1755709583210,2.95,184.46,184.37,2.8]
[1755709583607,0.04151152,184.43,184.37,7.3104455]
[1755709583806,0.04151152,184.43,184.37,2.8]
[1755709584516,0.04151152,184.43,184.39,5.4229]
[1755709584717,0.04151152,184.43,184.39,8.2229]
[1755709585522,0.04151152,184.43,184.41,2.8]
[1755709586411,0.04151152,184.43,184.37,3.07]
[1755709588118,0.04151152,184.43,184.37,8.4936]
[1755709588514,2.83151152,184.43,184.34,5.4244]
[1755709588716,2.83151152,184.43,184.3,4.5104455]
[1755709588717,4.98776061,184.42,184.3,4.5104455]
[1755709589021,4.98776061,184.42,184.29,7.5804455]
[1755709589022,2.79,184.41,184.29,7.5804455]
[1755709589223,2.79,184.39,184.29,3.07]
[1755709589409,0.0353314,184.37,184.29,3.07]
[1755709590008,0.0353314,184.37,184.29,8.4957]
[1755709590417,0.0353314,184.37,184.29,3.07]
[1755709590610,0.0353314,184.37,184.31,5.4253]
[1755709591017,0.0353314,184.37,184.29,3.07]
[1755709591916,2.8253314,184.37,184.32,5.425]
[1755709592219,2.8253314,184.37,184.29,3.07]
[1755709592416,2.8253314,184.37,184.3,5.4257]
[1755709592917,2.8253314,184.37,184.29,5.4259]
[1755709593115,2.8253314,184.37,184.25,3.07]
[1755709593618,2.79,184.37,184.25,3.07]
[1755709593821,0.03682771,184.33,184.25,3.07]
[1755709594219,2.82682771,184.33,184.28,8.4962]
[1755709594522,2.82682771,184.33,184.28,3.07]
[1755709594923,2.82682771,184.33,184.29,5.426]
[1755709595320,2.79,184.37,184.22,3.07]
[1755709595521,2.79,184.37,184.22,4.54004626]
[1755709595823,0.03725023,184.33,184.31,8.4952]
[1755709596220,0.03725023,184.33,184.32,5.4251]
[1755709596422,0.03725023,184.33,184.31,3.07]
[1755709596620,0.03725023,184.33,184.22,3.07]
[1755709597019,2.79,184.34,184.22,3.07]
[1755709597528,0.03428561,184.29,184.23,3.07]
[1755709598419,0.03428561,184.29,184.28,8.4963]
[1755709600125,0.03428561,184.29,184.28,5.4263]
[1755709601928,0.03428561,184.29,184.28,8.4963]
[1755709603124,8.561e-05,184.29,184.28,8.4963]
[1755709604529,8.561e-05,184.29,184.28,9.0363]
[1755709604926,8.561e-05,184.29,184.28,12.03471352]
[1755709605129,8.561e-05,184.29,184.27,5.4612216]
[1755709605429,8.561e-05,184.29,184.28,3.07]
[1755709605925,8.561e-05,184.29,184.28,8.4964]
[1755709607427,364.5,184.42,184.36,5.424]
[1755709607623,321.0,184.6,184.27,3.0336199]
[1755709607624,2.79,184.44,184.34,3.07]
[1755709607822,2.79,184.44,184.29,3.07]
[1755709607823,2.79,184.4,184.29,3.07]
[1755709608026,2.79,184.4,184.36,5.4239]
[1755709608331,2.79,184.39,184.33,3.07]
[1755709608532,2.79,184.43,184.33,3.07]
[1755709609134,2.79,184.43,184.37,5.4236]
[1755709609436,2.79,184.43,184.33,3.07]
[1755709609624,2.99841352,184.41,184.36,0.03465187]
[1755709609829,2.79,184.39,184.36,0.03465187]
[1755709610027,2.79,184.4,184.29,3.07]
[1755709610733,2.79,184.4,184.33,0.03533378]
[1755709611927,2.99841352,184.44,184.35,5.4243]
[1755709612136,2.79,184.39,184.33,0.03533378]
[1755709612348,2.79,184.39,184.32,3.07]
[1755709612633,2.79,184.39,184.35,5.4242]
[1755709612832,2.79,184.46,184.32,3.07]
[1755709613236,2.79,184.46,184.34,5.4245]
[1755709614034,2.79,184.46,184.32,3.07]
[1755709614236,2.79,184.43,184.38,0.03433033]
[1755709614430,2.79,184.4,184.38,0.03433033]
[1755709614630,2.79,184.43,184.38,0.03433033]
[1755709620644,3.06,184.39,184.25,3.07]
[1755709620949,3.06,184.35,184.25,3.07]
[1755709621140,136.6,184.35,184.25,3.07]
[1755709621340,3.06,184.34,184.25,3.07]
[1755709621546,3.06,184.31,184.2,8.4985]
[1755709621739,3.06,184.31,184.2,3.07]
[1755709621940,3.09494648,184.31,184.2,3.07]
[1755709623551,4.99247213,184.28,184.2,3.07]
[1755709623750,3.06,184.27,184.16,3.07]
[1755709624351,0.03777883,184.23,184.18,5.4293]
[1755709624654,0.03777883,184.23,184.19,3.07]
[1755709625055,3.06,184.27,184.19,3.07]
[1755709625456,0.03911396,184.23,184.19,3.07]
[1755709626958,0.03911396,184.23,184.15,3.07]
[1755709627457,3.06,184.24,184.15,3.07]
[1755709627848,0.03711997,184.21,184.15,3.07]
[1755709628856,0.03711997,184.21,184.17,3.07]
[1755709629057,0.03711997,184.21,184.11,3.07]
[1755709629447,0.03711997,184.21,184.11,4.53213736]
[1755709629651,0.03711997,184.21,184.12,3.07]
[1755709629958,0.03711997,184.21,184.18,5.4291]
[1755709630155,0.03711997,184.21,184.12,3.07]
[1755709630459,0.03711997,184.21,184.12,7.60213736]
[1755709630658,0.03711997,184.21,184.13,3.07]
[1755709631060,0.03711997,184.21,184.13,7.60213736]
[1755709631257,0.03711997,184.21,184.2,5.4287]
[1755709631464,0.03711997,184.21,184.2,8.4987]
[1755709633160,0.03711997,184.21,184.14,3.07]
[1755709633949,0.03711997,184.21,184.14,7.60213736]
[1755709634157,0.03711997,184.21,184.2,5.4287]
[1755709634359,0.03711997,184.21,184.2,8.4987]
[1755709635062,0.03711997,184.21,184.2,3.07]
[1755709635660,0.03711997,184.21,184.2,8.4987]
[1755709638457,0.03711997,184.21,184.2,3.07]
[1755709639263,0.03711997,184.21,184.2,8.4987]
[1755709640862,0.03711997,184.21,184.2,3.07]
[1755709641162,0.03711997,184.21,184.15,3.000498]
[1755709641363,0.03711997,184.21,184.2,3.07]
[1755709642365,0.03711997,184.21,184.2,8.4987]
[1755709642561,3.06,184.31,184.2,3.61]
[1755709642764,3.06,184.3,184.23,3.07]
[1755709643464,123.04835198,184.34,184.23,3.07]
[1755709643772,123.04835198,184.34,184.28,5.4262]
[1755709643956,123.04835198,184.34,184.23,3.07]
[1755709644963,123.04835198,184.34,184.25,3.000498]
[1755709645170,3.06,184.34,184.27,0.03502655]
[1755709645766,3.06,184.34,184.31,5.4254]
[1755709645968,3.06,184.34,184.27,0.03502655]
[1755709646467,3.06,184.34,184.3,5.4255]
[1755709646672,500.9,184.39,184.3,5.4255]
[1755709646974,2.8,184.38,184.28,5.910498]
[1755709647178,2.8,184.38,184.31,5.4254]
[1755709647372,2.8,184.38,184.28,5.910498]
[1755709648080,2.8,184.42,184.31,0.03987162]
[1755709648580,0.03728825,184.35,184.33,2.91]
[1755709649069,2.8,184.42,184.36,5.4239]
[1755709649267,2.8,184.42,184.34,2.91]
[1755709649676,256.72437408,184.44,184.37,5.4237]
[1755709649878,2.8,184.43,184.37,5.4237]
[1755709650772,2.8,184.43,184.31,3.000498]
[1755709650971,3.000498,184.43,184.3,2.91]
[1755709651174,2.8,184.42,184.3,2.91]
[1755709651371,2.8,184.42,184.33,5.4248]
[1755709651973,2.8,184.42,184.32,5.4251]
[1755709652276,2.8,184.42,184.3,2.91]
[1755709652877,2.8,184.42,184.32,2.91]
[1755709653283,2.8,184.42,184.34,3.000498]
[1755709653970,2.8,184.42,184.37,5.4234]
[1755709654170,2.8,184.41,184.37,5.4234]
[1755709655178,120.38437408,184.44,184.36,5.4239]
[1755709655380,2.8,184.41,184.34,5.910498]
[1755709656582,120.38437408,184.44,184.38,5.4232]
[1755709657176,2.8,184.43,184.34,5.910498]
[1755709657571,2.8,184.43,184.38,5.4231]
[1755709657774,120.38437408,184.44,184.39,2.91]
[1755709658178,120.38437408,184.44,184.4,2.91]
[1755709658682,120.38437408,184.44,184.41,5.4223]
[1755709659183,139.0,184.46,184.41,5.4223]
[1755709659683,2.8,184.45,184.41,5.4223]
[1755709659983,2.8,184.44,184.4,5.4227]
[1755709660382,2.8,184.43,184.39,5.423]
[1755709660579,2.8,184.43,184.37,3.000498]
[1755709660881,2.8,184.43,184.36,2.91]
[1755709661386,2.8,184.41,184.38,5.4233]
[1755709661574,2.8,184.41,184.35,2.91]
[1755709661778,136.2,184.46,184.35,2.91]
[1755709661973,139.0,184.46,184.35,2.91]
[1755709662385,139.0,184.46,184.4,5.4226]
[1755709662585,139.0,184.46,184.35,2.91]
[1755709662974,139.0,184.46,184.4,5.4226]
[1755709663387,139.0,184.46,184.35,2.91]
[1755709663684,2.8,184.45,184.38,5.4233]
[1755709663885,2.8,184.45,184.35,2.91]
[1755709664087,2.8,184.45,184.37,5.4234]
[1755709664384,2.8,184.45,184.35,2.91]
[1755709664585,2.8,184.45,184.37,5.4237]
[1755709664787,2.8,184.43,184.31,5.910498]
[1755709665485,2.8,184.43,184.32,2.91]
[1755709665879,2.8,184.43,184.39,5.423]
[1755709666276,2.8,184.43,184.35,2.91]
[1755709666683,2.8,184.43,184.36,5.424]
[1755709667481,2.8,184.43,184.31,3.000498]
[1755709667688,2.8,184.43,184.32,2.91]
[1755709668286,2.8,184.43,184.35,5.4243]
[1755709668790,2.8,184.43,184.32,2.91]
[1755709669089,2.8,184.43,184.36,5.4237]
[1755709670282,2.8,184.43,184.32,2.91]
[1755709670595,2.8,184.43,184.37,5.4237]
[1755709670793,2.8,184.43,184.34,2.91]
[1755709671090,2.8,184.42,184.34,2.91]
[1755709671289,139.200498,184.46,184.34,2.91]
[1755709671290,141.760498,184.46,184.34,3.000498]
[1755709671491,138.76,184.46,184.38,2.91]
[1755709671885,2.8,184.46,184.38,2.91]
[1755709672591,2.8,184.46,184.39,5.423]
[1755709674688,2.8,184.46,184.38,8.3333]
[1755709674991,2.8,184.45,184.34,2.91]
[1755709675197,2.8,184.45,184.37,5.4236]
[1755709675395,2.8,184.45,184.34,2.91]
[1755709676093,2.8,184.45,184.38,5.4233]
[1755709678797,2.8,184.45,184.39,5.4231]
[1755709679894,2.8,184.45,184.38,5.4233]
[1755709680101,2.8,184.45,184.36,2.9]
[1755709680301,2.8,184.45,184.37,5.4235]
[1755709680503,2.8,184.45,184.36,2.9]
[1755709681497,2.8,184.45,184.39,5.4229]
[1755709681714,2.8,184.45,184.39,2.9]
[1755709681998,364.72,184.49,184.42,2.9]
[1755709682704,2.94,184.48,184.37,2.9]
[1755709683200,367.720498,184.49,184.38,5.4232]
[1755709683201,2.94,184.45,184.38,5.4232]
[1755709684001,2.94,184.45,184.37,8.3236]
[1755709684498,2.94,184.45,184.32,3.000498]
[1755709684701,2.94,184.42,184.33,2.9]
[1755709684901,3.000498,184.4,184.29,4.52139708]
[1755709685099,3.000498,184.4,184.28,2.9]
[1755709685100,2.94,184.39,184.31,5.4253]
[1755709685406,2.94,184.39,184.28,2.9]
[1755709685605,2.94,184.39,184.3,5.4257]
[1755709685903,2.94,184.39,184.28,2.9]
[1755709686101,3.000498,184.37,184.28,2.9]
[1755709686309,2.94,184.36,184.28,2.9]
[1755709686699,2.94,184.36,184.28,8.3261]
[1755709687005,2.94,184.36,184.28,2.9]
[1755709687299,5.940498,184.36,184.29,5.4259]
[1755709687505,5.940498,184.36,184.28,2.9]
[1755709687906,5.940498,184.36,184.29,5.4259]
[1755709688094,5.940498,184.36,184.28,2.9]
[1755709688303,2.94,184.36,184.28,2.9]
[1755709688501,2.94,184.36,184.32,2.9]
[1755709689802,2.94,184.36,184.32,8.3251]
[1755709690002,3.000498,184.39,184.32,8.3251]
[1755709690003,138.920498,184.39,184.32,8.3251]
[1755709690903,2.94,184.38,184.28,4.55616399]
[1755709691207,2.94,184.35,184.28,5.4262]
[1755709691403,2.94,184.35,184.27,4.55616399]
[1755709691606,2.94,184.35,184.28,2.9]
[1755709691807,2.94,184.35,184.3,8.3256]
[1755709692001,2.94,184.35,184.31,2.9]
[1755709692308,3.000498,184.38,184.31,5.4252]
[1755709692503,3.000498,184.38,184.29,4.55616399]
[1755709693205,3.000498,184.38,184.28,7.45616399]
[1755709693396,3.000498,184.38,184.31,5.4253]
[1755709694007,3.000498,184.38,184.3,5.4257]
[1755709694209,3.000498,184.38,184.28,7.45616399]
[1755709694509,138.86,184.39,184.29,4.55616399]
[1755709694703,138.86,184.39,184.3,7.45616399]
[1755709694897,2.94,184.43,184.31,4.55616399]
[1755709695098,2.94,184.43,184.32,7.45616399]
[1755709695302,2.94,184.43,184.37,5.4236]
[1755709695807,2.94,184.43,184.36,5.4239]
[1755709696006,2.94,184.43,184.35,2.9]
[1755709696603,2.94,184.43,184.36,5.424]
[1755709696804,2.94,184.43,184.35,2.9]
[1755709697006,2.94,184.43,184.33,4.55616399]
[1755709697209,2.94,184.43,184.31,6.04284981]
[1755709697210,2.94,184.43,184.31,7.45616399]
[1755709697607,2.94,184.43,184.32,7.45616399]
[1755709697911,2.94,184.43,184.33,2.9]
[1755709698105,2.94,184.43,184.35,5.4243]
[1755709698307,2.94,184.43,184.33,7.45616399]
[1755709698501,2.94,184.43,184.36,5.4239]
[1755709698707,2.94,184.43,184.34,2.9]
[1755709698903,2.94,184.43,184.35,2.9]
[1755709699409,2.94,184.43,184.37,5.4235]
[1755709699815,2.94,184.43,184.36,5.4239]
[1755709701117,2.94,184.43,184.37,5.4237]
[1755709701317,2.94,184.43,184.35,2.9]
[1755709701618,2.94,184.43,184.35,5.900498]
[1755709701819,135.92,184.46,184.38,2.9]
[1755709702216,2.94,184.47,184.38,2.9]
[1755709702919,2.94,184.47,184.4,5.4226]
[1755709704523,2.94,184.47,184.41,5.4225]
[1755709705123,2.94,184.47,184.4,5.4227]
[1755709705617,2.94,184.47,184.38,2.9]
[1755709705917,2.94,184.47,184.38,8.3233]
[1755709706423,364.72,184.49,184.37,2.9]
[1755709706622,364.72,184.49,184.39,2.9]
[1755709706922,2.84,184.51,184.39,7.45616399]
[1755709707117,138.74,184.51,184.4,2.9]
[1755709707726,138.74,184.51,184.43,2.9]
[1755709708114,138.74,184.51,184.46,5.4208]
[1755709708319,138.74,184.51,184.46,8.3208]
[1755709708622,6.02275973,184.54,184.41,3.000498]
[1755709708828,144.74275973,184.55,184.45,2.9]
[1755709709230,138.72,184.55,184.48,2.9]
[1755709709622,119.43373569,184.56,184.51,5.4193]
[1755709709827,6.02275973,184.6,184.52,2.9]
[1755709710223,6.02275973,184.61,184.56,2.9]
[1755709710420,6.02275973,184.61,184.57,2.9]
[1755709710823,141.90275973,184.63,184.53,3.000498]
[1755709711024,141.90275973,184.63,184.57,0.03631688]
[1755709711227,141.90275973,184.63,184.57,2.93631688]
[1755709711531,135.88,184.63,184.57,2.93631688]
[1755709713435,135.88,184.63,184.57,0.03631688]
[1755709715834,2.84,184.61,184.57,0.03631688]
[1755709716632,2.84,184.6,184.57,0.03631688]
[1755709717034,2.87957401,184.6,184.57,0.03631688]
[1755709717436,0.03957401,184.6,184.57,0.03631688]
[1755709718629,2.87957401,184.6,184.57,0.03631688]
[1755709718835,2.84,184.58,184.57,0.03631688]
[1755709719432,2.87957401,184.6,184.57,0.03631688]
[1755709720736,2.84,184.58,184.57,0.03631688]
[1755709721130,2.87957401,184.6,184.57,0.03631688]
[1755709721641,2.84,184.59,184.57,0.03631688]
[1755709722541,0.03957401,184.6,184.57,2.93631688]
[1755709722736,0.03957401,184.6,184.58,2.9]
[1755709722936,0.03957401,184.6,184.57,0.03631688]
[1755709722937,0.03957401,184.6,184.59,2.9]
[1755709724036,2.84,184.74,184.59,0.54]
[1755709724242,2.84,184.74,184.61,4.9805965]
[1755709724446,2.84,184.74,184.62,2.9]
[1755709725045,2.84,184.74,184.68,5.4141]
[1755709725244,2.84,184.74,184.62,2.9]
[1755709725245,135.74,184.79,184.62,2.9]
[1755709725442,2.84,184.78,184.66,0.03859325]
[1755709725646,2.84,184.78,184.67,2.9]
[1755709726146,2.84,184.78,184.71,0.03742803]
[1755709727133,367.0,184.81,184.71,0.03742803]
[1755709727539,367.0,184.81,184.72,2.9]
[1755709727942,367.0,184.81,184.73,5.4126]
[1755709728138,367.0,184.81,184.72,2.9]
[1755709728540,367.0,184.81,184.72,8.3129]
[1755709728843,367.0,184.81,184.75,0.04012496]
[1755709729046,2.84,184.81,184.75,0.04012496]
[1755709731640,2.84,184.79,184.75,0.04012496]
[1755709732348,4.9805965,184.8,184.75,0.04012496]
[1755709732553,2.84,184.76,184.75,0.04012496]
[1755709732848,138.5,184.76,184.75,0.04012496]
[1755709734451,192.82485201,184.83,184.75,0.04012496]
[1755709734452,2.84,184.82,184.75,0.04012496]
[1755709734648,135.64,184.81,184.75,0.04012496]
[1755709735954,135.64,184.81,184.75,3.00012496]
[1755709736746,135.64,184.81,184.75,8.41232496]
[1755709737555,135.64,184.81,184.76,5.412]
[1755709737753,2.79,184.8,184.75,0.04012496]
[1755709738058,135.64,184.81,184.76,5.412]
[1755709738260,135.64,184.81,184.77,2.96]
[1755709739649,4.9805965,184.89,184.75,0.04012496]
[1755709739853,2.79,184.86,184.77,2.96]
[1755709740051,2.79,184.86,184.77,8.3715]
[1755709740251,2.79,184.86,184.62,62.0]
[1755709740252,2.79,184.86,184.7,2.96]
[1755709740549,2.79,184.82,184.7,8.3737]
[1755709740751,2.79,184.8,184.7,8.3737]
[1755709740956,2.79,184.8,184.7,2.96]
[1755709741257,135.6,184.79,184.7,2.96]
[1755709741652,135.6,184.82,184.77,2.96]
[1755709741852,138.39,184.82,184.77,2.96]
[1755709742257,2.79,184.81,184.64,4.9805965]
[1755709742451,135.6,184.82,184.78,0.04023584]
[1755709742452,2.79,184.8,184.78,0.04023584]
[1755709742656,2.79,184.79,184.7,2.96]
[1755709744062,0.03648145,184.76,184.7,2.96]
[1755709744361,0.03648145,184.76,184.74,2.96]
[1755709744755,2.79,184.79,184.71,2.96]
[1755709744962,2.79,184.79,184.67,2.96]
[1755709745162,2.79,184.76,184.67,2.96]
[1755709745350,0.03646183,184.77,184.67,2.96]
[1755709746661,2.82646183,184.77,184.67,2.96]
[1755709746860,2.82646183,184.77,184.7,5.4138]
[1755709747159,2.82646183,184.77,184.67,2.96]
[1755709747358,2.82646183,184.77,184.7,5.4135]
[1755709747560,2.82646183,184.77,184.67,2.96]
[1755709748355,2.79,184.75,184.61,2.96]
[1755709748555,138.35,184.75,184.61,2.96]
[1755709749157,0.0403511,184.7,184.61,2.96]
[1755709749659,0.0403511,184.7,184.68,5.4141]
[1755709751066,2.79,184.69,184.65,2.96]
[1755709751259,2.79,184.69,184.61,2.96]
[1755709751656,2.79,184.69,184.63,5.4156]
[1755709752062,0.0410842,184.67,184.61,2.96]
[1755709752267,0.0410842,184.67,184.64,5.4153]
[1755709752471,0.0410842,184.67,184.61,2.96]
[1755709752864,2.8310842,184.67,184.64,5.4153]
[1755709753770,2.79,184.66,184.61,2.96]
[1755709753960,0.0410842,184.67,184.61,2.96]
[1755709754160,2.79,184.65,184.61,8.3762]
[1755709754361,2.79,184.66,184.57,2.96]
[1755709755060,0.04100775,184.63,184.57,2.96]
[1755709755256,0.04100775,184.63,184.58,5.4171]
[1755709755467,2.83100775,184.63,184.58,2.96]
[1755709755867,2.83100775,184.63,184.59,5.4169]
[1755709756166,2.83100775,184.63,184.58,2.96]
[1755709756764,2.83100775,184.63,184.54,2.96]
[1755709757266,2.83100775,184.63,184.55,5.418]
[1755709757662,2.83100775,184.63,184.54,2.96]
[1755709758768,2.83100775,184.63,184.55,5.4181]
[1755709759071,2.83100775,184.63,184.5,2.96]
[1755709759265,2.83100775,184.63,184.54,5.4183]
[1755709759464,2.79,184.63,184.54,5.4183]
[1755709759869,0.04071754,184.6,184.54,5.4183]
[1755709760071,2.83071754,184.6,184.53,5.4187]
[1755709760269,2.83071754,184.6,184.5,2.96]
[1755709760569,2.83071754,184.6,184.54,5.4182]
[1755709761065,2.83071754,184.6,184.57,5.4173]
[1755709761369,0.04071754,184.6,184.56,2.96]
[1755709761572,2.79,184.63,184.56,2.96]
[1755709761762,0.03870781,184.6,184.58,5.4173]
[1755709761963,0.03870781,184.6,184.56,2.96]
[1755709762269,0.03870781,184.6,184.52,2.96]
[1755709762471,0.03870781,184.6,184.58,8.3771]
[1755709763470,0.03870781,184.6,184.53,2.96]
[1755709764373,2.79,184.59,184.52,2.96]
[1755709764869,2.79,184.59,184.49,4.45866007]
[1755709765064,2.82870781,184.6,184.55,2.96]
[1755709765260,2.79,184.67,184.56,2.96]
[1755709765661,0.03901236,184.59,184.58,5.4171]
[1755709765862,2.79,184.67,184.58,8.3671]
[1755709766066,2.79,184.67,184.58,2.95]
[1755709766258,0.03666139,184.6,184.58,2.95]
[1755709766668,2.79,184.67,184.58,2.95]
[1755709767066,0.04147252,184.61,184.59,2.95]
[1755709767261,0.04147252,184.61,184.6,5.4167]
[1755709767567,2.79,184.67,184.6,2.95]
[1755709767964,0.03627147,184.62,184.61,8.3664]
[1755709768467,2.79,184.67,184.61,8.3664]
[1755709768672,0.04033665,184.63,184.61,8.3664]
[1755709769473,0.04033665,184.63,184.56,4.51701766]
[1755709769474,0.04033665,184.63,184.62,8.3661]
[1755709770165,3.06,184.75,184.67,5.4145]
[1755709770366,3.06,184.75,184.65,2.95]
[1755709770566,3.06,184.75,184.63,5.4156]
[1755709770771,4.9805965,184.73,184.6,2.95]
[1755709770964,3.06,184.72,184.6,2.95]
[1755709771573,3.06,184.72,184.64,0.03631539]
[1755709773273,3.06,184.72,184.64,2.98631539]
[1755709773970,3.06,184.72,184.64,8.40171539]
[1755709774165,3.06,184.72,184.64,2.98631539]
[1755709774875,3.06,184.72,184.66,5.4148]
[1755709775073,3.06,184.72,184.64,2.98631539]
[1755709775270,0.03839583,184.7,184.67,8.3646]
[1755709775767,0.03839583,184.7,184.68,8.3642]
[1755709776871,0.03839583,184.7,184.64,0.03631539]
[1755709776872,0.03839583,184.7,184.67,5.4145]
[1755709777771,0.03839583,184.7,184.68,5.4143]
[1755709778173,0.03839583,184.7,184.69,8.364]
[1755709785580,0.03839583,184.7,184.65,2.95]
[1755709785776,3.09839583,184.7,184.65,2.95]
[1755709785976,3.09839583,184.7,184.64,4.55333305]
[1755709785977,0.03839583,184.7,184.67,8.3644]
[1755709786172,0.03839583,184.7,184.65,2.95]
[1755709786476,0.03839583,184.7,184.68,5.4141]
[1755709786678,0.03839583,184.7,184.67,2.95]
[1755709787476,0.03839583,184.7,184.65,2.95]